[Event "*** SCC Grand Prix: Titled Tuesday Blitz"]
[Site "Chess.com"]
[Date "2020.07.14"]
[Round "10"]
[White "TheWolfSpur"]
[Black "1f3_2g41-0"]
[Result "1-0"]
[WhiteElo "2292"]
[BlackElo "2382"]
[TimeControl "180+1"]
[EndTime "11:56:34 PDT"]
[Termination "TheWolfSpur won by resignation"]

1. d4 {[%clk 0:03:00.9]} 1... Nf6 {[%clk 0:02:58.9]} 2. c4 {[%clk 0:03:01.1]}
2... g6 {[%clk 0:02:58.2]} 3. Nc3 {[%clk 0:03:00.5]} 3... d5 {[%clk 0:02:58.5]}
4. cxd5 {[%clk 0:03:01.4]} 4... Nxd5 {[%clk 0:02:55.9]} 5. e4 {[%clk 0:03:01.9]}
5... Nxc3 {[%clk 0:02:55.7]} 6. bxc3 {[%clk 0:03:02.7]} 6... Bg7 {[%clk
0:02:54.2]} 7. Nf3 {[%clk 0:03:03.2]} 7... O-O {[%clk 0:02:44.7]} 8. Be3 {[%clk
0:02:56.4]} 8... c5 {[%clk 0:02:44.8]} 9. Be2 {[%clk 0:02:56.2]} 9... Nc6 {[%clk
0:02:41.6]} 10. O-O {[%clk 0:02:56]} 10... Bg4 {[%clk 0:02:34.7]} 11. d5 {[%clk
0:02:45.7]} 11... Bxf3 {[%clk 0:02:29.5]} 12. Bxf3 {[%clk 0:02:16.5]} 12... Na5
{[%clk 0:02:24.6]} 13. Rc1 {[%clk 0:02:11.1]} 13... Rc8 {[%clk 0:02:20.9]} 14.
Be2 {[%clk 0:02:06.2]} 14... f5 {[%clk 0:01:38.9]} 15. exf5 {[%clk 0:01:58.2]}
15... Rxf5 {[%clk 0:01:38.4]} 16. Bg4 {[%clk 0:01:55.2]} 16... Nc4 {[%clk
0:01:35.1]} 17. Bxf5 {[%clk 0:01:47.8]} 17... gxf5 {[%clk 0:01:36]} 18. Qd3
{[%clk 0:01:47.1]} 18... Nd6 {[%clk 0:01:35.3]} 19. Bf4 {[%clk 0:01:29.7]} 19...
c4 {[%clk 0:01:31.4]} 20. Qh3 {[%clk 0:01:22.4]} 20... Ne4 {[%clk 0:01:26.5]}
21. Qxf5 {[%clk 0:01:17.5]} 21... Nxc3 {[%clk 0:01:26.2]} 22. Rfe1 {[%clk
0:00:58.3]} 22... Qxd5 {[%clk 0:01:21.4]} 23. Qxc8+ {[%clk 0:00:57.4]} 23... Kf7
{[%clk 0:01:21.3]} 24. Qh3 {[%clk 0:00:45.2]} 24... e5 {[%clk 0:01:11.5]} 25.
Qxc3 {[%clk 0:00:42.2]} 25... exf4 {[%clk 0:01:08.5]} 26. Qxc4 {[%clk
0:00:42.5]} 1-0

[Event "*** SCC Grand Prix: Titled Tuesday Blitz"]
[Site "Chess.com"]
[Date "2020.07.14"]
[Round "10"]
[White "Oneofmyturns"]
[Black "TigrVShlyape"]
[Result "0-1"]
[WhiteElo "2707"]
[BlackElo "2855"]
[TimeControl "180+1"]
[EndTime "11:56:37 PDT"]
[Termination "TigrVShlyape won by resignation"]

1. d4 {[%clk 0:03:00.9]} 1... Nf6 {[%clk 0:02:58.6]} 2. c4 {[%clk 0:03:01.1]}
2... g6 {[%clk 0:02:58.1]} 3. Nc3 {[%clk 0:03:01.2]} 3... Bg7 {[%clk 0:02:58.2]}
4. e4 {[%clk 0:03:01.7]} 4... d6 {[%clk 0:02:58.2]} 5. h3 {[%clk 0:03:02.2]}
5... e5 {[%clk 0:02:52.5]} 6. d5 {[%clk 0:02:55.8]} 6... Na6 {[%clk 0:02:50]} 7.
Be3 {[%clk 0:02:53.9]} 7... Nc5 {[%clk 0:02:49.4]} 8. Qc2 {[%clk 0:02:54.3]}
8... a5 {[%clk 0:02:46.1]} 9. Nge2 {[%clk 0:02:30.7]} 9... Bd7 {[%clk
0:02:40.9]} 10. g4 {[%clk 0:02:26]} 10... c6 {[%clk 0:02:38.3]} 11. Ng3 {[%clk
0:02:23.1]} 11... cxd5 {[%clk 0:02:38]} 12. cxd5 {[%clk 0:02:24]} 12... Rc8
{[%clk 0:02:36.8]} 13. Qd2 {[%clk 0:02:14.6]} 13... h5 {[%clk 0:02:34.2]} 14. g5
{[%clk 0:01:57.1]} 14... Nh7 {[%clk 0:02:32]} 15. h4 {[%clk 0:01:57.1]} 15...
O-O {[%clk 0:02:27.4]} 16. f3 {[%clk 0:01:44.1]} 16... Qe8 {[%clk 0:02:10.5]}
17. Be2 {[%clk 0:01:36.3]} 17... f6 {[%clk 0:02:08.8]} 18. gxf6 {[%clk
0:01:10.1]} 18... Bxf6 {[%clk 0:02:07.9]} 19. Nd1 {[%clk 0:00:57.1]} 19... Qd8
{[%clk 0:02:00.8]} 20. Bg5 {[%clk 0:00:24.2]} 20... Nxg5 {[%clk 0:01:56.4]} 21.
hxg5 {[%clk 0:00:25]} 21... Bxg5 {[%clk 0:01:56.1]} 22. Ne3 {[%clk 0:00:25.8]}
22... b5 {[%clk 0:01:42]} 23. Kf2 {[%clk 0:00:15.8]} 23... h4 {[%clk 0:01:36.2]}
0-1

[Event "*** SCC Grand Prix: Titled Tuesday Blitz"]
[Site "Chess.com"]
[Date "2020.07.14"]
[Round "10"]
[White "Evgeny81"]
[Black "m_ezat"]
[Result "1-0"]
[WhiteElo "2735"]
[BlackElo "2552"]
[TimeControl "180+1"]
[EndTime "11:56:38 PDT"]
[Termination "Evgeny81 won by resignation"]

1. e4 {[%clk 0:03:00.9]} 1... c6 {[%clk 0:02:59.3]} 2. d4 {[%clk 0:03:00.7]}
2... d5 {[%clk 0:02:58.4]} 3. f3 {[%clk 0:03:01.4]} 3... e6 {[%clk 0:02:56.7]}
4. Nc3 {[%clk 0:03:01.5]} 4... Bb4 {[%clk 0:02:55.5]} 5. Bf4 {[%clk 0:03:00.5]}
5... Nf6 {[%clk 0:02:54.8]} 6. Qd3 {[%clk 0:03:00.8]} 6... b6 {[%clk 0:02:54.3]}
7. Ne2 {[%clk 0:03:00.5]} 7... Ba6 {[%clk 0:02:52.8]} 8. Qe3 {[%clk 0:03:00.9]}
8... O-O {[%clk 0:02:48.3]} 9. O-O-O {[%clk 0:03:00.5]} 9... Nfd7 {[%clk
0:02:26.2]} 10. h4 {[%clk 0:02:57]} 10... Re8 {[%clk 0:02:10.4]} 11. h5 {[%clk
0:02:54.2]} 11... e5 {[%clk 0:02:07.1]} 12. dxe5 {[%clk 0:02:53.6]} 12... Nxe5
{[%clk 0:02:06.7]} 13. Bxe5 {[%clk 0:02:46.9]} 13... Rxe5 {[%clk 0:02:05.4]} 14.
f4 {[%clk 0:02:39.9]} 14... Re8 {[%clk 0:02:01.8]} 15. h6 {[%clk 0:02:40.3]}
15... Bxe2 {[%clk 0:01:51.8]} 16. Bxe2 {[%clk 0:02:36.1]} 16... Bxc3 {[%clk
0:01:43.3]} 17. Qxc3 {[%clk 0:02:32.9]} 17... Qf6 {[%clk 0:01:43.3]} 18. Qxf6
{[%clk 0:02:29.2]} 18... gxf6 {[%clk 0:01:42.8]} 19. Bf3 {[%clk 0:02:24.7]}
19... Nd7 {[%clk 0:01:21.8]} 20. exd5 {[%clk 0:02:22.4]} 20... cxd5 {[%clk
0:01:20.6]} 21. Bxd5 {[%clk 0:02:16.2]} 21... Rac8 {[%clk 0:01:11]} 22. Bxf7+
{[%clk 0:02:14.7]} 22... Kxf7 {[%clk 0:01:10.3]} 23. Rxd7+ {[%clk 0:02:15.6]}
23... Re7 {[%clk 0:01:10.5]} 24. Rxe7+ {[%clk 0:02:08.3]} 24... Kxe7 {[%clk
0:01:10.4]} 25. Rh3 {[%clk 0:02:08.6]} 25... Rg8 {[%clk 0:01:08.8]} 26. Ra3
{[%clk 0:02:06]} 26... a5 {[%clk 0:01:06.7]} 27. Rb3 {[%clk 0:02:06.1]} 27...
Rxg2 {[%clk 0:01:04]} 28. Rxb6 {[%clk 0:02:06]} 28... Kf7 {[%clk 0:01:04.5]} 29.
f5 {[%clk 0:02:04.2]} 29... Rh2 {[%clk 0:01:01.9]} 30. Rb7+ {[%clk 0:02:00.1]}
30... Kg8 {[%clk 0:01:01.6]} 31. Rg7+ {[%clk 0:01:59.9]} 31... Kh8 {[%clk
0:01:00.7]} 32. Ra7 {[%clk 0:02:00.8]} 32... Rxh6 {[%clk 0:00:59.8]} 33. Rxa5
{[%clk 0:01:59.6]} 33... Rh2 {[%clk 0:00:58.1]} 34. Rd5 {[%clk 0:01:56.7]} 34...
Rf2 {[%clk 0:00:56.1]} 35. a4 {[%clk 0:01:56.2]} 35... h5 {[%clk 0:00:55.4]} 36.
a5 {[%clk 0:01:54.8]} 36... Rf1+ {[%clk 0:00:55.4]} 37. Kd2 {[%clk 0:01:54.5]}
37... Ra1 {[%clk 0:00:54.9]} 38. b4 {[%clk 0:01:53.7]} 38... h4 {[%clk
0:00:54.6]} 39. Rd4 {[%clk 0:01:53.3]} 39... Rh1 {[%clk 0:00:49.9]} 40. a6
{[%clk 0:01:52.9]} 40... Ra1 {[%clk 0:00:49.2]} 41. Rxh4+ {[%clk 0:01:51.9]}
41... Kg7 {[%clk 0:00:49.7]} 42. b5 {[%clk 0:01:52.5]} 1-0

[Event "*** SCC Grand Prix: Titled Tuesday Blitz"]
[Site "Chess.com"]
[Date "2020.07.14"]
[Round "10"]
[White "ErikRonka"]
[Black "TurboSteen"]
[Result "0-1"]
[WhiteElo "2343"]
[BlackElo "1996"]
[TimeControl "180+1"]
[EndTime "11:56:41 PDT"]
[Termination "TurboSteen won by resignation"]

1. b3 {[%clk 0:03:00.9]} 1... e5 {[%clk 0:02:58.4]} 2. Bb2 {[%clk 0:03:00.7]}
2... Nc6 {[%clk 0:02:56.7]} 3. e3 {[%clk 0:03:00.3]} 3... d5 {[%clk 0:02:55.5]}
4. Bb5 {[%clk 0:02:59.9]} 4... Bd6 {[%clk 0:02:51.3]} 5. f4 {[%clk 0:02:59.8]}
5... f6 {[%clk 0:02:48.4]} 6. fxe5 {[%clk 0:02:51.8]} 6... fxe5 {[%clk
0:02:46.3]} 7. Bxc6+ {[%clk 0:02:30.7]} 7... bxc6 {[%clk 0:02:43.5]} 8. Bxe5
{[%clk 0:02:30.2]} 8... Qh4+ {[%clk 0:01:55.5]} 9. g3 {[%clk 0:02:29.9]} 9...
Qe4 {[%clk 0:01:54.8]} 10. Bxd6 {[%clk 0:01:22.3]} 10... Qxh1 {[%clk 0:01:46.3]}
11. Qh5+ {[%clk 0:01:22.3]} 11... Kd7 {[%clk 0:01:34.5]} 12. c4 {[%clk
0:00:43.4]} 12... Qxg1+ {[%clk 0:01:29.3]} 13. Ke2 {[%clk 0:00:40.5]} 13... cxd6
{[%clk 0:01:24.2]} 14. Nc3 {[%clk 0:00:34.4]} 14... Qxa1 {[%clk 0:01:20.8]} 15.
cxd5 {[%clk 0:00:34.1]} 15... Ba6+ {[%clk 0:01:17.7]} 16. Kf3 {[%clk 0:00:23.3]}
16... Qf1+ {[%clk 0:01:03.8]} 0-1

[Event "*** SCC Grand Prix: Titled Tuesday Blitz"]
[Site "Chess.com"]
[Date "2020.07.14"]
[Round "10"]
[White "ChessArchitect64"]
[Black "Evachess2006"]
[Result "1-0"]
[WhiteElo "1865"]
[BlackElo "1607"]
[TimeControl "180+1"]
[EndTime "11:56:41 PDT"]
[Termination "ChessArchitect64 won by resignation"]

1. d4 {[%clk 0:03:00.1]} 1... d5 {[%clk 0:02:57.1]} 2. Nf3 {[%clk 0:02:57.7]}
2... Nf6 {[%clk 0:02:37.9]} 3. g3 {[%clk 0:02:56.8]} 3... e6 {[%clk 0:01:53.8]}
4. Bg2 {[%clk 0:02:55.9]} 4... c5 {[%clk 0:01:14.4]} 5. O-O {[%clk 0:02:49.2]}
5... Be7 {[%clk 0:00:56.6]} 6. dxc5 {[%clk 0:02:15.4]} 6... Bxc5 {[%clk
0:00:57.5]} 7. c4 {[%clk 0:02:15]} 7... dxc4 {[%clk 0:00:19.9]} 8. Qc2 {[%clk
0:02:08.5]} 8... O-O {[%clk 0:00:16.5]} 9. Nbd2 {[%clk 0:02:06.7]} 9... Nc6
{[%clk 0:00:12.9]} 10. Nxc4 {[%clk 0:01:57.8]} 10... Nd4 {[%clk 0:00:12.4]} 11.
Nxd4 {[%clk 0:01:56.3]} 11... Bxd4 {[%clk 0:00:13.3]} 12. Rd1 {[%clk 0:01:54.9]}
12... e5 {[%clk 0:00:02.6]} 13. e3 {[%clk 0:01:51.6]} 13... Be6 {[%clk
0:00:02.7]} 14. exd4 {[%clk 0:01:49.8]} 14... exd4 {[%clk 0:00:03.6]} 15. Qd3
{[%clk 0:01:45.7]} 15... Rc8 {[%clk 0:00:03.9]} 16. b3 {[%clk 0:01:42.8]} 16...
Bxc4 {[%clk 0:00:02.1]} 17. bxc4 {[%clk 0:01:41]} 17... Qc7 {[%clk 0:00:03]} 18.
Bf4 {[%clk 0:01:31.1]} 18... Rfd8 {[%clk 0:00:03.9]} 19. Bxc7 {[%clk 0:01:29.6]}
1-0

[Event "*** SCC Grand Prix: Titled Tuesday Blitz"]
[Site "Chess.com"]
[Date "2020.07.14"]
[Round "10"]
[White "sergivila"]
[Black "iaraldinho"]
[Result "0-1"]
[WhiteElo "2364"]
[BlackElo "2532"]
[TimeControl "180+1"]
[EndTime "11:56:43 PDT"]
[Termination "iaraldinho won by checkmate"]

1. e4 {[%clk 0:03:00.9]} 1... c5 {[%clk 0:02:59.6]} 2. Nf3 {[%clk 0:03:00.4]}
2... a6 {[%clk 0:02:59.8]} 3. c3 {[%clk 0:02:58.3]} 3... d5 {[%clk 0:02:59.1]}
4. exd5 {[%clk 0:02:58.7]} 4... Qxd5 {[%clk 0:03:00]} 5. d4 {[%clk 0:02:58.9]}
5... cxd4 {[%clk 0:03:00.9]} 6. cxd4 {[%clk 0:02:57.7]} 6... Nf6 {[%clk
0:03:01.8]} 7. Nc3 {[%clk 0:02:57.5]} 7... Qd6 {[%clk 0:03:02.7]} 8. Bd3 {[%clk
0:02:47.8]} 8... e6 {[%clk 0:03:00.9]} 9. O-O {[%clk 0:02:46.4]} 9... Nc6 {[%clk
0:03:00.9]} 10. a3 {[%clk 0:02:45.1]} 10... Be7 {[%clk 0:03:01.1]} 11. Bc2
{[%clk 0:02:40.3]} 11... O-O {[%clk 0:03:00.5]} 12. Bg5 {[%clk 0:02:35.9]} 12...
Rd8 {[%clk 0:02:59.4]} 13. Qd3 {[%clk 0:02:33.5]} 13... g6 {[%clk 0:02:59]} 14.
Rad1 {[%clk 0:02:33.1]} 14... b5 {[%clk 0:02:53.2]} 15. h4 {[%clk 0:02:10.1]}
15... Bb7 {[%clk 0:02:49.4]} 16. Rfe1 {[%clk 0:01:51.2]} 16... b4 {[%clk
0:02:48.7]} 17. Ne4 {[%clk 0:01:44.9]} 17... Nxe4 {[%clk 0:02:47.2]} 18. Rxe4
{[%clk 0:01:44.1]} 18... Na5 {[%clk 0:02:40.4]} 19. Re5 {[%clk 0:01:40.2]} 19...
Bd5 {[%clk 0:02:34.8]} 20. h5 {[%clk 0:01:28.2]} 20... b3 {[%clk 0:02:30.5]} 21.
Bb1 {[%clk 0:01:25.1]} 21... Nc6 {[%clk 0:02:21]} 22. hxg6 {[%clk 0:01:19.4]}
22... hxg6 {[%clk 0:02:17.4]} 23. Re3 {[%clk 0:01:10.2]} 23... Bxg5 {[%clk
0:02:13.2]} 24. Nxg5 {[%clk 0:01:08.3]} 24... Qf4 {[%clk 0:02:13.1]} 25. Rg3
{[%clk 0:01:05.1]} 25... Kg7 {[%clk 0:02:01.5]} 26. Nxf7 {[%clk 0:00:53.3]}
26... Qxf7 {[%clk 0:01:59.5]} 27. Rxg6+ {[%clk 0:00:53.2]} 27... Kf8 {[%clk
0:01:59.2]} 28. Qg3 {[%clk 0:00:46.1]} 28... Ne7 {[%clk 0:01:51.8]} 29. Rh6
{[%clk 0:00:39.4]} 29... Qg7 {[%clk 0:01:30.6]} 30. Qf4+ {[%clk 0:00:33]} 30...
Nf5 {[%clk 0:01:29.1]} 31. Bxf5 {[%clk 0:00:30.9]} 31... Qxg2# {[%clk
0:01:28.2]} 0-1

[Event "*** SCC Grand Prix: Titled Tuesday Blitz"]
[Site "Chess.com"]
[Date "2020.07.14"]
[Round "10"]
[White "natelleka"]
[Black "Bastiandash"]
[Result "1-0"]
[WhiteElo "2148"]
[BlackElo "2302"]
[TimeControl "180+1"]
[EndTime "11:56:46 PDT"]
[Termination "natelleka won by resignation"]

1. e4 {[%clk 0:03:00.7]} 1... c5 {[%clk 0:02:59.4]} 2. Nf3 {[%clk 0:03:00.5]}
2... e6 {[%clk 0:02:59.5]} 3. d4 {[%clk 0:03:01]} 3... cxd4 {[%clk 0:03:00.4]}
4. Nxd4 {[%clk 0:03:01.4]} 4... a6 {[%clk 0:03:01.3]} 5. Bd3 {[%clk 0:02:59.4]}
5... Bc5 {[%clk 0:03:00.7]} 6. Nb3 {[%clk 0:02:57.1]} 6... Be7 {[%clk
0:02:53.2]} 7. O-O {[%clk 0:02:47]} 7... Qc7 {[%clk 0:02:50.1]} 8. f4 {[%clk
0:02:45.8]} 8... Nf6 {[%clk 0:02:49.5]} 9. e5 {[%clk 0:02:37.2]} 9... Nd5 {[%clk
0:02:49.2]} 10. Qg4 {[%clk 0:02:33.6]} 10... g6 {[%clk 0:02:46.4]} 11. Be4
{[%clk 0:01:56.3]} 11... Qb6+ {[%clk 0:02:39.2]} 12. Kh1 {[%clk 0:01:55.7]}
12... Ne3 {[%clk 0:02:39.7]} 13. Bxe3 {[%clk 0:01:50.6]} 13... Qxe3 {[%clk
0:02:40.6]} 14. Nc3 {[%clk 0:01:46.5]} 14... Nc6 {[%clk 0:02:32.8]} 15. Rae1
{[%clk 0:01:39]} 15... Qb6 {[%clk 0:02:30.7]} 16. f5 {[%clk 0:01:06.3]} 16...
exf5 {[%clk 0:02:13.7]} 17. Bxf5 {[%clk 0:01:05]} 17... gxf5 {[%clk 0:02:02.1]}
18. Qg7 {[%clk 0:00:50.5]} 18... Rf8 {[%clk 0:02:01.8]} 19. Nd5 {[%clk
0:00:50.2]} 19... Qd8 {[%clk 0:01:40.6]} 20. Nf6+ {[%clk 0:00:47.5]} 20... Bxf6
{[%clk 0:01:17.6]} 21. exf6+ {[%clk 0:00:47.1]} 21... Qe7 {[%clk 0:01:12.4]} 22.
Rxe7+ {[%clk 0:00:44.6]} 22... Nxe7 {[%clk 0:01:11.2]} 23. Re1 {[%clk
0:00:42.4]} 1-0

[Event "*** SCC Grand Prix: Titled Tuesday Blitz"]
[Site "Chess.com"]
[Date "2020.07.14"]
[Round "10"]
[White "RobertoJBM"]
[Black "SilviusTiberius"]
[Result "0-1"]
[WhiteElo "2612"]
[BlackElo "2508"]
[TimeControl "180+1"]
[EndTime "11:56:48 PDT"]
[Termination "SilviusTiberius won by resignation"]

1. d4 {[%clk 0:03:00.9]} 1... Nf6 {[%clk 0:02:59]} 2. c4 {[%clk 0:03:01]} 2...
g6 {[%clk 0:02:59.4]} 3. Nc3 {[%clk 0:03:01]} 3... Bg7 {[%clk 0:03:00]} 4. e4
{[%clk 0:03:01]} 4... d6 {[%clk 0:03:00.4]} 5. f3 {[%clk 0:03:00.6]} 5... O-O
{[%clk 0:03:00.5]} 6. Be3 {[%clk 0:03:01.2]} 6... c5 {[%clk 0:03:00.3]} 7. dxc5
{[%clk 0:03:00.8]} 7... dxc5 {[%clk 0:03:01.2]} 8. Qxd8 {[%clk 0:03:01.7]} 8...
Rxd8 {[%clk 0:03:01.6]} 9. Bxc5 {[%clk 0:03:02.4]} 9... Nc6 {[%clk 0:03:01.8]}
10. Nd5 {[%clk 0:02:59.7]} 10... e6 {[%clk 0:02:46.3]} 11. Nc3 {[%clk
0:02:26.6]} 11... b6 {[%clk 0:02:32.5]} 12. Ba3 {[%clk 0:02:25.1]} 12... a5
{[%clk 0:02:28]} 13. Nb5 {[%clk 0:02:22.8]} 13... Nb4 {[%clk 0:02:25.8]} 14. Kf2
{[%clk 0:02:18.8]} 14... Nc2 {[%clk 0:02:16.2]} 15. Rc1 {[%clk 0:02:17]} 15...
Nxa3 {[%clk 0:02:16]} 16. bxa3 {[%clk 0:02:12]} 16... Rd2+ {[%clk 0:02:13]} 17.
Ne2 {[%clk 0:02:09.8]} 17... Rxa2 {[%clk 0:02:12.6]} 18. Ke3 {[%clk 0:01:58.1]}
18... Bf8 {[%clk 0:02:12.3]} 19. g4 {[%clk 0:01:45.5]} 19... Bb7 {[%clk
0:01:40.1]} 20. Nec3 {[%clk 0:01:39]} 20... Rb2 {[%clk 0:01:31.6]} 21. e5 {[%clk
0:01:34.7]} 21... Nxg4+ {[%clk 0:01:30.5]} 22. fxg4 {[%clk 0:01:35.6]} 22...
Bh6+ {[%clk 0:01:27.7]} 23. Kd4 {[%clk 0:01:21.9]} 23... Bxc1 {[%clk 0:01:20.3]}
24. Rg1 {[%clk 0:01:19.3]} 24... Bf4 {[%clk 0:00:54.9]} 25. Bd3 {[%clk
0:01:10.6]} 25... f6 {[%clk 0:00:48.6]} 26. Be4 {[%clk 0:01:01.1]} 0-1

[Event "*** SCC Grand Prix: Titled Tuesday Blitz"]
[Site "Chess.com"]
[Date "2020.07.14"]
[Round "10"]
[White "RaunakSadhwani2005"]
[Black "BogdanDeac"]
[Result "1-0"]
[WhiteElo "2959"]
[BlackElo "2803"]
[TimeControl "180+1"]
[EndTime "11:56:51 PDT"]
[Termination "RaunakSadhwani2005 won by resignation"]

1. d4 {[%clk 0:03:00.9]} 1... d5 {[%clk 0:02:59]} 2. Nf3 {[%clk 0:03:00.5]} 2...
Nf6 {[%clk 0:02:58.7]} 3. Bf4 {[%clk 0:03:00.4]} 3... c5 {[%clk 0:02:58.4]} 4.
e3 {[%clk 0:02:59.7]} 4... Nc6 {[%clk 0:02:58.9]} 5. c3 {[%clk 0:02:56.8]} 5...
Qb6 {[%clk 0:02:58.6]} 6. Qb3 {[%clk 0:02:52.5]} 6... c4 {[%clk 0:02:58.3]} 7.
Qc2 {[%clk 0:02:52.9]} 7... Bf5 {[%clk 0:02:57.8]} 8. Qc1 {[%clk 0:02:52.5]}
8... e6 {[%clk 0:02:52.7]} 9. h3 {[%clk 0:02:45.5]} 9... h6 {[%clk 0:02:50.5]}
10. Nbd2 {[%clk 0:02:45.9]} 10... Rc8 {[%clk 0:02:42.9]} 11. Be2 {[%clk
0:02:45.6]} 11... Be7 {[%clk 0:02:42.2]} 12. O-O {[%clk 0:02:46]} 12... O-O
{[%clk 0:02:42.2]} 13. b3 {[%clk 0:02:35.6]} 13... cxb3 {[%clk 0:02:41.4]} 14.
axb3 {[%clk 0:02:36.5]} 14... Nb4 {[%clk 0:02:41.4]} 15. Qb2 {[%clk 0:02:30.8]}
15... Bd3 {[%clk 0:02:40.8]} 16. Nb1 {[%clk 0:01:54.5]} 16... Ne4 {[%clk
0:02:33.2]} 17. Ne5 {[%clk 0:01:44]} 17... Bxb1 {[%clk 0:02:32]} 18. cxb4 {[%clk
0:01:39.6]} 18... Rc2 {[%clk 0:02:09.3]} 19. Qxb1 {[%clk 0:01:38.9]} 19... Rxe2
{[%clk 0:02:05.8]} 20. Nd7 {[%clk 0:01:38.7]} 20... Qb5 {[%clk 0:01:56.8]} 21.
Nxf8 {[%clk 0:01:38.2]} 21... Nd2 {[%clk 0:01:56.9]} 22. Qd1 {[%clk 0:01:32.7]}
22... Nxf1 {[%clk 0:01:51.7]} 23. Qxf1 {[%clk 0:01:33.6]} 23... Bxb4 {[%clk
0:01:42.7]} 24. Nd7 {[%clk 0:01:24]} 24... Qd3 {[%clk 0:00:52.8]} 25. Ne5 {[%clk
0:01:10.8]} 25... Qc2 {[%clk 0:00:51.7]} 26. Rc1 {[%clk 0:01:07.3]} 26... Qa2
{[%clk 0:00:50.7]} 27. Bg3 {[%clk 0:01:02.3]} 1-0

[Event "*** SCC Grand Prix: Titled Tuesday Blitz"]
[Site "Chess.com"]
[Date "2020.07.14"]
[Round "10"]
[White "AttackSparrow"]
[Black "harkerchess"]
[Result "1-0"]
[WhiteElo "2316"]
[BlackElo "2106"]
[TimeControl "180+1"]
[EndTime "11:56:53 PDT"]
[Termination "AttackSparrow won on time"]

1. e4 {[%clk 0:03:00.9]} 1... e5 {[%clk 0:02:55.5]} 2. Nc3 {[%clk 0:02:58.7]}
2... Nf6 {[%clk 0:02:54.4]} 3. f4 {[%clk 0:02:56.8]} 3... d5 {[%clk 0:02:50.5]}
4. fxe5 {[%clk 0:02:56.7]} 4... Nxe4 {[%clk 0:02:49.3]} 5. Qe2 {[%clk
0:02:56.9]} 5... Nxc3 {[%clk 0:02:48.7]} 6. dxc3 {[%clk 0:02:57.8]} 6... Bc5
{[%clk 0:02:47.1]} 7. Nf3 {[%clk 0:02:57.5]} 7... O-O {[%clk 0:02:46.6]} 8. Be3
{[%clk 0:02:57.5]} 8... Bxe3 {[%clk 0:02:46.4]} 9. Qxe3 {[%clk 0:02:58.4]} 9...
Nc6 {[%clk 0:02:45.5]} 10. O-O-O {[%clk 0:02:58.1]} 10... h6 {[%clk 0:02:37.9]}
11. c4 {[%clk 0:02:56.4]} 11... Ne7 {[%clk 0:02:25.9]} 12. cxd5 {[%clk
0:02:52.4]} 12... Nxd5 {[%clk 0:02:22.2]} 13. Qd4 {[%clk 0:02:52.5]} 13... Be6
{[%clk 0:02:11.6]} 14. Bc4 {[%clk 0:02:42.1]} 14... c6 {[%clk 0:02:09.5]} 15.
Kb1 {[%clk 0:02:37.9]} 15... Qa5 {[%clk 0:02:02.5]} 16. a3 {[%clk 0:02:21.7]}
16... Rad8 {[%clk 0:01:49.4]} 17. Bxd5 {[%clk 0:02:12.2]} 17... Rxd5 {[%clk
0:01:40.6]} 18. Qb4 {[%clk 0:02:06.2]} 18... Qxb4 {[%clk 0:01:35.9]} 19. axb4
{[%clk 0:02:07.1]} 19... Rfd8 {[%clk 0:01:35.3]} 20. Rxd5 {[%clk 0:02:06.7]}
20... Rxd5 {[%clk 0:01:36.2]} 21. Kc1 {[%clk 0:02:05.1]} 21... Kf8 {[%clk
0:01:35.9]} 22. Re1 {[%clk 0:02:05.2]} 22... Ke7 {[%clk 0:01:34.9]} 23. c3
{[%clk 0:02:05.6]} 23... Rd8 {[%clk 0:01:30.2]} 24. Nd4 {[%clk 0:02:05.7]} 24...
Bd7 {[%clk 0:01:19.8]} 25. g3 {[%clk 0:02:04.7]} 25... b6 {[%clk 0:01:12]} 26.
Nb3 {[%clk 0:02:01]} 26... Be6 {[%clk 0:01:00.5]} 27. Nd4 {[%clk 0:02:00.2]}
27... Bd7 {[%clk 0:01:00.1]} 28. Re3 {[%clk 0:01:55.6]} 28... Re8 {[%clk
0:00:58.3]} 29. Kd2 {[%clk 0:01:54.6]} 29... Kd8 {[%clk 0:00:40.3]} 30. Ke2
{[%clk 0:01:52.7]} 1-0

[Event "*** SCC Grand Prix: Titled Tuesday Blitz"]
[Site "Chess.com"]
[Date "2020.07.14"]
[Round "10"]
[White "dopolian"]
[Black "swayamsm"]
[Result "0-1"]
[WhiteElo "2440"]
[BlackElo "2601"]
[TimeControl "180+1"]
[EndTime "11:57:04 PDT"]
[Termination "swayamsm won on time"]

1. e4 {[%clk 0:03:00.9]} 1... e6 {[%clk 0:03:00.9]} 2. d4 {[%clk 0:03:00.1]}
2... d5 {[%clk 0:03:01.8]} 3. Nd2 {[%clk 0:03:00.3]} 3... Be7 {[%clk 0:03:01.7]}
4. Ngf3 {[%clk 0:02:59.7]} 4... Nf6 {[%clk 0:03:02.1]} 5. Bd3 {[%clk 0:02:58.6]}
5... c5 {[%clk 0:03:00.7]} 6. exd5 {[%clk 0:02:56.7]} 6... Qxd5 {[%clk 0:03:00]}
7. dxc5 {[%clk 0:02:54.8]} 7... O-O {[%clk 0:02:58.9]} 8. O-O {[%clk 0:02:54.6]}
8... Nbd7 {[%clk 0:02:59.2]} 9. Nb3 {[%clk 0:02:52.3]} 9... Nxc5 {[%clk
0:02:59.4]} 10. Nxc5 {[%clk 0:02:52]} 10... Qxc5 {[%clk 0:03:00.3]} 11. Be3
{[%clk 0:02:50.7]} 11... Qc7 {[%clk 0:02:59.7]} 12. Bd4 {[%clk 0:02:44.1]} 12...
Rd8 {[%clk 0:02:56.8]} 13. Qe2 {[%clk 0:02:38.7]} 13... Bd7 {[%clk 0:02:52.6]}
14. c3 {[%clk 0:02:35.3]} 14... b6 {[%clk 0:02:45.2]} 15. Rad1 {[%clk
0:02:31.8]} 15... Bc6 {[%clk 0:02:42.6]} 16. h3 {[%clk 0:02:02.9]} 16... Qb7
{[%clk 0:02:42]} 17. Ne1 {[%clk 0:01:37.3]} 17... b5 {[%clk 0:02:40.8]} 18. f3
{[%clk 0:01:34.1]} 18... b4 {[%clk 0:02:33.9]} 19. Ba6 {[%clk 0:01:31.7]} 19...
Qc7 {[%clk 0:02:32.4]} 20. Nc2 {[%clk 0:01:26.2]} 20... Nh5 {[%clk 0:02:15.1]}
21. Be5 {[%clk 0:01:02.9]} 21... Qb6+ {[%clk 0:01:59.8]} 22. Bd4 {[%clk
0:01:00.7]} 22... Bc5 {[%clk 0:01:55.1]} 23. Bxc5 {[%clk 0:00:46.9]} 23... Qxc5+
{[%clk 0:01:56]} 24. Qf2 {[%clk 0:00:47.3]} 24... Qa5 {[%clk 0:01:43.4]} 25.
Nxb4 {[%clk 0:00:44.1]} 25... Ba4 {[%clk 0:01:39.6]} 26. Rxd8+ {[%clk
0:00:43.2]} 26... Rxd8 {[%clk 0:01:40.5]} 27. Bc4 {[%clk 0:00:37.4]} 27... Nf4
{[%clk 0:01:36.1]} 28. Qe3 {[%clk 0:00:30.8]} 28... Qg5 {[%clk 0:01:30.4]} 0-1